bitfinex/quotes_SOLUSD_20241223
["timestamp","ask_amount","ask_price","bid_price","bid_amount"]
[1734925004675,20.0,185.23,185.13,0.62842514]
[1734925004969,0.12549,185.21,185.11,40.98490335]
[1734925005490,0.12549,185.17,185.07,41.61421886]
[1734925005669,1.13822006,185.17,185.07,0.62931551]
[1734925005978,23.776884,185.16,185.03,41.61472412]
[1734925006151,0.12549,185.13,185.01,37.84308339]
[1734925006353,20.0,185.11,184.99,37.21297789]
[1734925006587,1.13867508,185.1,184.97,37.21297789]
[1734925007086,0.12549,185.1,184.99,37.21297789]
[1734925007258,0.12549,185.1,185.0,0.63031051]
[1734925007650,0.12549,185.12,185.0,0.63031051]
[1734925007865,1.13845993,185.12,185.01,37.21297789]
[1734925008076,23.776884,185.23,185.07,37.21297789]
[1734925008376,23.776884,185.23,185.02,0.63023214]
[1734925008377,1.01259349,185.23,185.11,37.21297789]
[1734925008577,1.01236102,185.26,185.12,0.62900597]
[1734925008781,0.09075889,185.25,185.12,0.62900597]
[1734925008975,1.01236717,185.24,185.12,0.62900597]
[1734925009273,0.09075889,185.25,185.12,0.62900597]
[1734925009492,0.09075889,185.25,184.96,18.055]
[1734925009493,0.12549,185.24,185.07,37.21297789]
[1734925009658,1.10312257,185.25,185.08,0.62952914]
[1734925009659,0.12549,185.22,185.08,0.62952914]
[1734925009852,0.12549,185.22,185.09,37.21297789]
[1734925010081,1.13806084,185.22,185.07,37.21297789]
[1734925010281,1.13806084,185.22,185.09,37.21297789]
[1734925010581,1.13806084,185.22,185.1,0.62935859]
[1734925011208,1.10330548,185.25,185.11,37.21297789]
[1734925011488,0.09075889,185.25,185.13,37.21297789]
[1734925011660,0.09075889,185.25,185.14,0.6287652]
[1734925012567,0.09075889,185.25,185.15,37.21297789]
[1734925012792,0.09075889,185.25,185.16,0.62845717]
[1734925013162,0.09075889,185.25,185.18,37.21297789]
[1734925013360,0.09075889,185.25,185.19,0.62835732]
[1734925013885,0.09075889,185.25,185.16,37.21297789]
[1734925014183,0.09075889,185.25,185.17,0.62849331]
[1734925015059,0.09075889,185.25,185.18,37.21297789]
[1734925015264,0.09075889,185.25,185.19,0.62843035]
[1734925016495,0.09075889,185.25,185.17,0.62847745]
[1734925016862,0.09075889,185.25,185.24,37.21297789]
[1734925017162,8.36075796,185.42,185.24,37.21297789]
[1734925017363,3.91050384,185.43,185.32,37.21297789]
[1734925017568,3.6068,185.51,185.3,37.21297789]
[1734925017765,3.910504,185.47,185.3,37.21297789]
[1734925017969,1.01143229,185.46,185.31,0.62714852]
[1734925018467,1.01143229,185.46,185.32,37.21297789]
[1734925018668,0.12549,185.45,185.33,0.62691938]
[1734925018988,0.12549,185.43,185.33,0.62691938]
[1734925019181,1.13681045,185.43,185.3,37.21297789]
[1734925019377,1.01142086,185.5,185.32,37.21297789]
[1734925019578,1.01142086,185.5,185.33,0.62678235]
[1734925019778,1.01142086,185.5,185.34,37.21297789]
[1734925020381,0.12549,185.49,185.34,37.21297789]
[1734925020577,20.12549,185.49,185.34,37.21297789]
[1734925020891,23.902374,185.44,185.34,37.21297789]
[1734925021097,0.12549,185.42,185.34,37.21297789]
[1734925021388,23.902374,185.42,185.32,37.21297789]
[1734925021570,0.12549,185.4,185.32,37.21297789]
[1734925022172,0.12549,185.47,185.32,37.21297789]
[1734925022396,23.902374,185.43,185.3,37.21297789]
[1734925022696,23.776884,185.42,185.32,37.21297789]
[1734925022873,1.13689775,185.41,185.32,37.21297789]
[1734925023068,0.12549,185.41,185.3,37.21297789]
[1734925023382,0.12549,185.41,185.31,0.62715129]
[1734925023699,23.776884,185.47,185.32,37.21297789]
[1734925023885,1.01132967,185.46,185.36,37.21297789]
[1734925024089,3.6068,185.51,185.38,37.21297789]
[1734925024090,1.01111226,185.5,185.38,37.21297789]
[1734925024302,83.60757964,185.62,185.42,37.21297789]
[1734925024303,1.01098889,185.54,185.42,37.21297789]
[1734925024602,1.01098889,185.54,185.44,37.21297789]
[1734925024814,8.3913942,185.56,185.46,37.21297789]
[1734925024971,8.3913942,185.56,185.5,37.21297789]
[1734925025172,1.01045344,185.6,185.51,0.62519081]
[1734925025373,1.01045344,185.6,185.51,37.8381687]
[1734925025613,1.01040985,185.62,185.51,37.8381687]
[1734925025772,28.3913942,185.63,185.51,37.8381687]
[1734925025971,29.40154727,185.63,185.51,37.8381687]
[1734925026173,28.3913942,185.63,185.51,37.8381687]
[1734925026411,20.0,185.63,185.51,39.7403687]
[1734925026611,20.0,185.63,185.59,37.21297789]
[1734925026815,20.0,185.63,185.61,37.21297789]
[1734925026982,20.0,185.63,185.59,37.21297789]
[1734925027181,20.0,185.63,185.55,37.21297789]
[1734925027417,20.0,185.63,185.53,37.21297789]
[1734925027716,1.13563322,185.62,185.51,37.21297789]
[1734925028597,20.0,185.63,185.55,37.21297789]
[1734925028787,20.0,185.63,185.57,37.21297789]
[1734925029091,20.0,185.63,185.59,37.21297789]
[1734925029538,20.0,185.63,185.57,37.21297789]
[1734925029723,20.0,185.63,185.58,0.62410322]
[1734925030257,20.0,185.63,185.59,37.21297789]
[1734925030561,20.0,185.63,185.61,37.21297789]
[1734925031153,20.0,185.63,185.62,0.62366195]
[1734925032016,20.0,185.63,185.61,37.21297789]
[1734925032319,20.0,185.63,185.62,0.62376416]
[1734925032930,20.0,185.63,185.61,37.21297789]
[1734925033541,2.8466,185.63,185.61,37.21297789]
[1734925039486,2.8466,185.63,185.59,37.21297789]
[1734925039637,2.8466,185.63,185.57,37.21297789]
[1734925039834,2.8466,185.63,185.53,37.21297789]
[1734925040032,2.8466,185.63,185.51,37.21297789]
[1734925040238,2.8466,185.63,185.53,37.21297789]
[1734925040451,2.8466,185.63,185.55,37.21297789]
[1734925041574,2.8466,185.63,185.57,37.21297789]
[1734925042278,2.8466,185.63,185.61,37.21297789]
[1734925042477,2.8466,185.63,185.57,6.4225]
[1734925042478,2.8466,185.63,185.59,37.21297789]
[1734925042652,2.8466,185.63,185.61,37.21297789]
[1734925043050,2.8466,185.63,185.59,37.21297789]
[1734925043879,2.8466,185.63,185.57,37.21297789]
[1734925044062,2.8466,185.63,185.62,37.21297789]
[1734925045366,0.6777665,185.7,185.67,37.21297789]
[1734925046179,0.6777665,185.7,185.68,40.75652515]
[1734925046599,0.6777665,185.7,185.66,40.75652515]
[1734925047105,0.6777665,185.7,185.68,40.75652515]
[1734925047467,1.37310971,185.86,185.68,47.17902515]
[1734925047666,1.00907092,185.85,185.72,40.75652515]
[1734925047910,0.36389381,185.86,185.73,0.62243641]
[1734925048868,0.36389381,185.86,185.73,36.93285982]
[1734925049063,0.36389381,185.86,185.71,36.93285982]
[1734925049302,0.36389381,185.86,185.72,0.62264296]
[1734925049871,0.36389381,185.86,185.73,36.93285982]
[1734925050214,0.36389381,185.86,185.74,0.62228643]
[1734925051169,20.0,185.84,185.74,0.62228643]
[1734925051364,1.00899799,185.85,185.74,0.62228643]
[1734925051564,1.00899858,185.84,185.74,0.62228643]
[1734925051792,1.00899858,185.84,185.71,36.93285982]
[1734925052122,0.12549,185.83,185.71,36.93285982]
[1734925052333,0.12549,185.83,185.73,36.93285982]
[1734925052637,0.36389381,185.86,185.75,36.93285982]
[1734925052836,0.36389381,185.86,185.76,0.62210738]
[1734925053194,1.00893018,185.85,185.71,36.93285982]
[1734925053426,0.12549,185.84,185.72,0.622458]
[1734925054128,23.902374,185.84,185.72,0.622458]
[1734925054338,6.41169,185.8,185.69,36.93285982]
[1734925054537,0.12549,185.78,185.69,36.93285982]
[1734925054841,0.12549,185.78,185.7,0.6230718]
[1734925055026,0.12549,185.79,185.7,0.6230718]
[1734925055532,20.0,185.81,185.71,36.93285982]
[1734925055695,20.0,185.81,185.72,0.62281339]
[1734925057704,0.36389381,185.86,185.73,36.93285982]
[1734925057900,20.36389381,185.86,185.73,37.55528401]
[1734925058104,1.00903774,185.85,185.74,0.62235942]
[1734925058314,0.12549,185.84,185.74,0.62235942]
[1734925058506,0.12549,185.82,185.67,36.93285982]
[1734925058705,20.0,185.77,185.65,36.93285982]
[1734925059016,20.0,185.77,185.68,0.62335707]
[1734925059416,1.13487124,185.76,185.67,36.93285982]
[1734925059645,0.12549,185.76,185.63,36.93285982]
[1734925060470,23.776884,185.81,185.64,0.62353288]
[1734925060668,0.12549,185.75,185.64,0.62353288]
[1734925060891,0.12549,185.75,185.65,36.93285982]
[1734925061053,0.12549,185.75,185.67,36.93285982]
[1734925061248,1.00959699,185.8,185.68,0.62288628]
[1734925061583,0.12549,185.79,185.69,36.93285982]
[1734925061737,1.0093429,185.95,185.7,0.62296974]
[1734925061933,1.00913243,185.85,185.71,36.93285982]
[1734925062165,1.00913243,185.85,185.73,36.93285982]
[1734925062369,1.00913243,185.85,185.74,0.6223078]
[1734925063287,0.12549,185.85,185.74,0.6223078]
[1734925063781,1.00895729,186.01,185.74,0.6223078]
[1734925064274,0.12549,185.84,185.74,0.6223078]
[1734925064882,0.36389381,185.86,185.74,0.6223078]
[1734925065042,0.36389381,185.86,185.76,36.93285982]
[1734925065247,0.36389381,185.86,185.77,0.62213235]
[1734925066077,0.12549,185.85,185.77,0.62213235]
[1734925066445,0.12549,185.83,185.72,0.62204409]
[1734925066667,1.13452707,185.83,185.7,36.93285982]
[1734925067221,1.13452707,185.83,185.66,36.93285982]
[1734925067222,0.12549,185.8,185.66,36.93285982]
[1734925067409,1.13503471,185.8,185.66,36.93285982]
[1734925067615,0.12549,185.78,185.66,36.93285982]
[1734925067934,1.00949207,185.78,185.68,36.93285982]
[1734925068094,20.0,185.81,185.7,36.93285982]
[1734925068287,1.00931749,185.8,185.7,36.93285982]
[1734925068486,20.0,185.81,185.7,36.93285982]
[1734925068715,1.13473868,185.8,185.7,36.93285982]
[1734925068924,0.12549,185.8,185.7,36.93285982]
[1734925069225,1.13472909,185.8,185.7,36.93285982]
[1734925069792,1.13472909,185.8,185.68,36.93285982]
[1734925070022,1.00923909,185.8,185.7,36.93285982]
[1734925070183,0.36389381,185.86,185.75,40.72952312]
[1734925070385,0.36389381,185.86,185.76,0.62217102]
[1734925070940,1.37286104,185.86,185.76,0.62217102]
[1734925071441,0.12549,185.85,185.75,40.72952312]
[1734925071604,0.12549,185.85,185.76,0.6221845]
[1734925072235,0.12549,185.83,185.71,40.72952312]
[1734925073110,0.12549,185.83,185.65,6.1524]
[1734925073111,0.36389381,185.86,185.75,40.72952312]
[1734925074119,0.12549,185.85,185.73,40.72952312]
[1734925074318,0.12549,185.85,185.74,0.62241087]
[1734925074319,1.13455347,185.85,185.74,0.62241087]
[1734925074662,0.36389381,185.86,185.75,40.72952312]
[1734925074845,0.36389381,185.86,185.77,40.72952312]
[1734925075027,0.36389381,185.86,185.78,0.6216734]
[1734925076009,0.36389381,185.86,185.77,40.72952312]
[1734925076321,0.36389381,185.86,185.79,40.72952312]
[1734925076735,0.36389381,185.86,185.8,0.62169031]
[1734925077220,0.36389381,185.86,185.79,40.72952312]
[1734925078040,0.36389381,185.86,185.8,0.62186177]
[1734925079307,0.36389381,185.86,185.81,40.72952312]
[1734925079535,0.36389381,185.86,185.82,0.62123419]
[1734925080641,0.36389381,185.86,185.83,40.72952312]
[1734925080818,0.36389381,185.86,185.84,0.62109276]
[1734925081020,0.36389381,185.86,185.85,40.72952312]
[1734925083534,0.36389381,185.86,185.85,105.23593024]
[1734925083748,0.36389381,185.86,185.85,81.45904624]
[1734925084132,0.36389381,185.86,185.85,40.72952312]
[1734925084727,0.36389381,185.86,185.85,81.45904624]
[1734925085342,2.9000462,185.89,185.85,81.45904624]
[1734925085639,2.9000462,185.89,185.88,40.72952312]
[1734925086141,2.9000462,185.89,185.88,41.35032057]
[1734925088648,2.9000462,185.89,185.88,40.72952312]
[1734925089143,2.9000462,185.89,185.88,41.35026201]
[1734925090651,2.9000462,185.89,185.86,41.35037116]
[1734925090832,2.9000462,185.89,185.88,40.72952312]
[1734925091436,2.9000462,185.89,185.88,41.35035431]
[1734925092346,2.9000462,185.89,185.88,40.72952312]
[1734925093345,2.9000462,185.89,185.88,41.35033117]
[1734925094452,2.9000462,185.89,185.88,40.72952312]
[1734925096032,2.9000462,185.89,185.84,40.72952312]
[1734925096350,0.12549,185.88,185.84,40.72952312]
[1734925096850,2.9000462,185.89,185.85,0.62159076]
[1734925097058,2.9000462,185.89,185.84,38.22952312]
[1734925097352,2.9000462,185.89,185.85,40.72952312]
[1734925097936,2.9000462,185.89,185.86,0.62132824]
[1734925098332,2.9000462,185.89,185.87,40.72952312]
[1734925098950,2.9000462,185.89,185.88,0.62092419]
[1734925101173,2.9000462,185.89,185.87,40.72952312]
[1734925101460,2.9000462,185.89,185.88,0.6210691]
[1734925101756,2.9000462,185.89,185.87,40.72952312]
[1734925102140,2.9000462,185.89,185.88,0.621031]
[1734925103151,17.0768607,186.07,185.89,39.966884]
[1734925103451,17.0768607,186.07,185.99,40.72952312]
[1734925103756,8.6854665,186.07,186.0,0.61976818]
[1734925104255,8.6854665,186.07,186.0,0.61982892]
[1734925104627,0.6777665,186.07,186.0,0.61982892]
[1734925104840,0.6777665,186.07,185.97,40.72952312]
[1734925105043,0.6777665,186.07,186.0,0.61977299]
[1734925105437,0.6777665,186.07,186.01,40.72952312]
[1734925105651,0.6777665,186.07,186.02,0.61980229]
[1734925106631,0.6777665,186.07,186.01,0.61957708]
[1734925107456,0.12549,186.06,186.01,0.61957708]
[1734925107639,0.12549,186.06,185.99,40.72952312]
[1734925107954,0.12549,186.06,186.0,0.61981678]
[1734925108144,0.12549,186.06,185.98,40.72952312]
[1734925108145,1.13327353,186.06,185.98,40.72952312]
[1734925108345,0.12549,186.06,185.98,40.72952312]
[1734925109382,0.12549,186.06,185.97,40.72952312]
[1734925109691,23.902374,186.06,185.97,40.72952312]
[1734925109972,0.12549,186.04,185.96,40.72952312]
[1734925110171,0.12549,186.04,185.97,0.62012936]
[1734925110741,1.00792867,186.06,185.98,40.72952312]
[1734925110945,1.00792867,186.06,185.97,40.72952312]
[1734925111141,0.12549,186.05,185.96,40.72952312]
[1734925111366,0.12549,186.05,185.97,41.34954438]
[1734925111763,0.12549,186.03,185.96,40.72952312]
[1734925111957,0.12549,186.03,185.97,0.62018729]
[1734925112258,23.776884,186.05,185.97,0.62018729]
[1734925112474,0.6777665,186.07,185.97,0.62018729]
[1734925113175,0.12549,186.05,185.97,0.62018729]
[1734925113462,0.12549,186.03,185.94,40.72952312]
[1734925113759,0.12549,186.03,185.95,0.62028488]
[1734925114079,0.12549,186.03,185.84,13.4518]
[1734925114080,0.12549,185.98,185.87,40.72952312]
[1734925114375,23.902374,185.98,185.86,40.72952312]
[1734925114571,0.12549,185.94,185.85,40.72952312]
[1734925114757,24.91095899,185.94,185.85,40.72952312]
[1734925115074,23.902374,185.92,185.82,40.72952312]
[1734925115247,23.902374,185.9,185.79,40.72952312]
[1734925115456,23.902374,185.88,185.78,40.72952312]
[1734925115754,20.0,185.9,185.77,40.72952312]
[1734925115958,20.0,185.9,185.72,0.6221065]
[1734925115959,0.12549,185.85,185.75,40.72952312]
[1734925116188,0.12549,185.83,185.75,40.72952312]
[1734925116338,0.12549,185.83,185.72,0.6221065]
[1734925116339,0.12549,185.81,185.72,0.6221065]
[1734925116535,0.12549,185.81,185.68,40.72952312]
[1734925116536,20.12549,185.79,185.68,40.72952312]
[1734925116772,23.902374,185.77,185.66,40.72952312]
[1734925116991,23.902374,185.77,185.65,40.72952312]
[1734925116992,0.12549,185.75,185.65,40.72952312]
[1734925117475,23.902374,185.75,185.65,40.72952312]
[1734925117683,0.12549,185.71,185.6,40.72952312]
[1734925117850,1.13535449,185.71,185.61,0.6240129]
[1734925118369,6.2674,185.72,185.63,40.72952312]
[1734925118550,6.2674,185.72,185.68,40.72952312]
[1734925118868,6.2674,185.72,185.66,40.72952312]
[1734925119167,6.2674,185.72,185.64,40.72952312]
[1734925119364,6.2674,185.72,185.65,0.62350346]
[1734925119579,0.12549,185.71,185.64,40.72952312]
[1734925119776,0.12549,185.71,185.65,0.62364161]
[1734925120480,0.12549,185.71,185.58,40.72952312]
[1734925120481,23.776884,185.7,185.59,0.62361167]
[1734925120661,23.776884,185.7,185.54,40.72952312]
[1734925120662,23.902374,185.66,185.54,40.72952312]
[1734925120862,0.12549,185.64,185.54,40.72952312]
[1734925121383,23.902374,185.64,185.5,0.62440119]
[1734925121555,23.902374,185.62,185.5,0.62440119]
[1734925121754,23.902374,185.62,185.46,40.72952312]
[1734925121755,0.12549,185.6,185.47,0.62511523]
[1734925122157,6.5792,185.59,185.47,0.62511523]
[1734925122380,0.12549,185.57,185.47,0.62511523]
[1734925122694,1.01044202,185.58,185.47,0.62511523]
[1734925122855,0.12549,185.57,185.47,0.62511523]
[1734925123055,0.12549,185.57,185.48,0.62538644]
[1734925123255,1.01044202,185.58,185.48,0.62538644]
[1734925123456,1.01045799,185.58,185.48,0.62538644]
[1734925124069,1.01045799,185.58,185.44,40.72952312]
[1734925124269,0.12549,185.57,185.46,40.72952312]
[1734925124470,1.13599013,185.57,185.43,41.40728962]
[1734925125593,0.12549,185.55,185.43,41.40728962]
[1734925125888,1.8191,185.54,185.43,0.6777665]
[1734925126059,0.12549,185.51,185.43,0.6777665]
[1734925126262,0.12549,185.48,185.43,0.6777665]
[1734925126461,0.12549,185.43,185.29,40.72952312]
[1734925126683,1.13677839,185.43,185.29,40.72952312]
[1734925126894,1.13677839,185.43,185.27,40.72952312]
[1734925127067,0.12549,185.41,185.25,41.40728962]
[1734925127273,1.01153879,185.41,185.27,40.72952312]
[1734925127472,1.9465,185.42,185.29,40.72952312]
[1734925128598,1.9465,185.42,185.33,40.72952312]
[1734925128773,6.0545,185.47,185.33,40.72952312]
[1734925128971,1.13654641,185.46,185.31,40.72952312]
[1734925129582,20.0,185.44,185.31,40.72952312]
[1734925129786,0.12549,185.43,185.31,40.72952312]
[1734925130274,1.13673607,185.43,185.31,40.72952312]
[1734925130492,1.13673607,185.43,185.29,40.72952312]
[1734925130794,1.13673607,185.43,185.27,40.72952312]
[1734925132481,0.12549,185.41,185.25,41.40728962]
[1734925132680,0.12549,185.38,185.25,41.40728962]
[1734925133016,1.01156464,185.41,185.27,40.72952312]
[1734925133295,1.01139272,185.43,185.27,40.72952312]
[1734925133495,23.902374,185.42,185.27,40.72952312]
[1734925133674,0.12549,185.38,185.25,41.40728962]
[1734925133994,1.13702751,185.38,185.25,41.40728962]
[1734925134191,1.01153751,185.38,185.25,41.40728962]
[1734925134570,0.12549,185.38,185.25,0.6777665]
[1734925134810,0.12549,185.34,185.25,0.6777665]
[1734925135017,0.12549,185.31,185.25,0.6777665]
[1734925135212,1.13747428,185.31,185.25,0.6777665]
[1734925135395,1.13747428,185.31,185.13,40.72952312]
[1734925135603,1.13747428,185.31,185.01,1.9359]
[1734925135604,1.9219,185.25,185.07,40.72952312]
[1734925135790,1.13780343,185.24,185.07,40.72952312]
[1734925136286,0.12549,185.22,185.05,40.72952312]
[1734925136491,0.12549,185.21,185.05,40.72952312]
[1734925136803,0.12549,185.19,185.05,40.72952312]
[1734925137305,1.01262988,185.18,185.05,40.72952312]
[1734925137515,0.12549,185.2,185.03,40.72952312]
[1734925137685,6.40869,185.16,185.03,40.72952312]
[1734925138904,6.2832,185.16,185.03,40.72952312]
[1734925139686,6.2832,185.16,185.05,40.72952312]
[1734925141704,6.5682,185.22,185.07,64.50640712]
[1734925141907,6.5682,185.22,185.09,40.72952312]
[1734925142116,6.5682,185.22,185.07,40.72952312]
[1734925142415,1.13795776,185.21,185.05,40.72952312]
[1734925142615,1.13795776,185.21,185.01,40.72952312]
[1734925142805,1.13795776,185.21,185.05,40.72952312]
[1734925143185,20.0,185.19,185.05,40.72952312]
[1734925143416,6.5682,185.22,185.05,40.72952312]
[1734925143606,6.5682,185.22,185.11,40.72952312]
[1734925143807,6.5682,185.22,185.09,40.72952312]
[1734925144105,0.12549,185.2,185.03,40.72952312]
[1734925145010,0.12549,185.18,185.05,40.72952312]
[1734925145212,20.0,185.19,185.07,40.72952312]
[1734925145912,0.12549,185.21,185.07,40.72952312]
[1734925146115,6.5682,185.22,185.07,40.72952312]
[1734925146300,6.5682,185.22,185.11,40.72952312]
[1734925146621,6.5682,185.22,185.09,40.72952312]
[1734925146916,6.5682,185.22,185.13,40.72952312]
[1734925147288,6.5682,185.22,185.11,40.72952312]
[1734925147906,6.0719,185.28,185.13,40.72952312]
[1734925148215,1.01195875,185.27,185.13,40.72952312]
[1734925148616,1.01195875,185.27,185.11,40.72952312]
[1734925148812,0.12549,185.26,185.11,40.72952312]
[1734925149019,0.12549,185.24,185.09,40.72952312]
[1734925149195,0.12549,185.24,185.07,40.72952312]
[1734925149897,0.12549,185.24,185.05,40.72952312]
[1734925149898,0.12549,185.2,185.05,40.72952312]
[1734925150098,7.9689,185.19,185.01,40.72952312]
[1734925150406,0.12549,185.15,184.97,40.72952312]
[1734925150610,0.12549,185.11,184.95,40.72952312]
[1734925150808,1.01308745,185.11,184.97,40.72952312]
[1734925151115,1.01308745,185.11,184.91,19.9852]
[1734925151116,1.01308745,185.15,184.99,40.72952312]
[1734925151509,1.01275991,185.14,184.99,40.72952312]
[1734925151713,7.9689,185.19,185.01,40.72952312]
[1734925151917,20.0,185.16,185.01,40.72952312]
[1734925152894,7.9689,185.19,185.03,40.72952312]
[1734925153207,7.9689,185.19,185.05,40.72952312]
[1734925153812,7.9689,185.19,185.07,40.72952312]
[1734925154597,7.9689,185.19,185.05,40.72952312]
[1734925155315,1.13806856,185.18,185.03,40.72952312]
[1734925155914,0.12549,185.11,184.99,40.72952312]
[1734925156123,1.13857113,185.11,184.97,40.72952312]
[1734925157130,0.12549,185.09,184.95,40.72952312]
[1734925157296,20.0,185.14,184.91,6.4653]
[1734925157297,2.03489,185.07,184.91,40.72952312]
[1734925157497,20.0,185.0,184.9,148.6222]
[1734925157809,1.13910999,184.99,184.9,148.6222]
[1734925158331,1.01361999,184.99,184.9,148.6222]
[1734925158500,1.01356782,184.99,184.9,148.6222]
[1734925158692,20.0,185.0,184.9,148.6222]
[1734925158924,1.01366149,184.99,184.9,148.6222]
[1734925159224,0.12549,184.98,184.9,148.6222]
[1734925159922,1.01376879,184.97,184.9,148.6222]
[1734925160421,0.12549,184.98,184.9,148.6222]
[1734925162227,0.12549,184.94,184.9,148.6222]
[1734925162402,1.13953931,184.94,184.9,148.6222]
[1734925164243,26.58179,184.91,184.9,146.3539]
[1734925164444,26.58179,184.91,184.9,144.2996]
[1734925165546,6.58179,184.91,184.9,144.2996]
[1734925165852,6.4563,184.91,184.9,142.3399]
[1734925166029,30.358674,184.91,184.9,142.3399]
[1734925166618,6.58179,184.91,184.9,142.3399]
[1734925167114,30.358674,184.91,184.9,142.3399]
[1734925169347,20.0,184.87,184.7,0.6777665]
[1734925169523,20.0,184.82,184.7,0.6777665]
[1734925169728,1.014811,184.81,184.7,0.6777665]
[1734925170447,29.978184,184.8,184.7,0.6777665]
[1734925170652,23.776884,184.76,184.7,0.6777665]
[1734925170823,20.0,184.73,184.7,0.6777665]
[1734925171649,1.01522473,184.75,184.7,0.6777665]
[1734925172628,1.01508251,184.79,184.7,0.6777665]
[1734925173443,0.12549,184.78,184.7,0.6777665]
[1734925173650,0.12549,184.76,184.7,0.6777665]
[1734925174033,0.12549,184.75,184.7,0.6777665]
[1734925174264,20.0,184.77,184.7,0.6777665]
[1734925174568,6.2013,184.8,184.7,0.6777665]
[1734925174770,6.2639,184.91,184.7,0.6777665]
[1734925175049,0.12549,184.89,184.7,0.6777665]
[1734925175251,1.01470396,184.88,184.7,0.6777665]
[1734925175454,0.12549,184.87,184.7,0.6777665]
[1734925175636,1.01461991,184.86,184.7,0.6777665]
[1734925176456,0.12549,184.85,184.7,0.6777665]
[1734925176633,0.12549,184.83,184.7,0.6777665]
[1734925176834,23.776884,184.89,184.7,0.6777665]
[1734925177033,20.0,184.84,184.7,0.6777665]
[1734925177249,0.12549,184.82,184.7,0.6777665]
[1734925178445,23.902374,184.82,184.7,0.6777665]
[1734925178638,0.12549,184.8,184.7,0.6777665]
[1734925179353,1.01478549,184.81,184.7,0.6777665]
[1734925179556,1.01459119,184.83,184.7,0.6777665]
[1734925180365,0.12549,184.82,184.7,0.6777665]
[1734925180550,0.12549,184.8,184.7,0.6777665]
[1734925180748,23.776884,184.85,184.7,0.6777665]
[1734925180955,20.0,184.82,184.7,0.6777665]
[1734925181181,0.12549,184.81,184.7,0.6777665]
[1734925181770,20.0,184.82,184.7,0.6777665]
[1734925181968,1.01452827,184.98,184.71,41.1998207]
[1734925182187,1.01447308,184.9,184.71,41.1998207]
[1734925182465,1.01447308,184.9,184.73,41.1998207]
[1734925182666,1.01447308,184.9,184.76,8.4582]
[1734925183164,0.12549,184.89,184.76,8.4582]
[1734925183367,1.01422373,184.92,184.76,8.4582]
[1734925183866,36.16297998,185.2,184.81,41.1998207]
[1734925183867,1.01421694,184.96,184.81,41.1998207]
[1734925184072,6.4708,185.02,184.81,41.1998207]
[1734925184371,1.01388599,185.01,184.83,41.1998207]
[1734925184864,1.01388599,185.01,184.88,1.7653]
[1734925185072,8.3016485,185.08,184.89,47.4079207]
[1734925185255,1.01348797,185.07,184.91,41.1998207]
[1734925185453,1.01348797,185.07,184.93,41.1998207]
[1734925185661,2.2070113,185.13,184.95,41.1998207]
[1734925185874,1.01318647,185.12,184.97,41.1998207]
[1734925186164,1.01318647,185.12,184.98,37.22513664]
[1734925186165,0.12549,185.11,184.98,37.22513664]
[1734925186874,1.01303225,185.19,184.98,37.22513664]
[1734925187055,1.01303225,185.19,185.0,37.22513664]
[1734925187240,1.01303225,185.19,185.01,1.7653]
[1734925187446,1.01303225,185.19,185.02,37.22513664]
[1734925187643,1.01303225,185.19,185.03,6.2081]
[1734925187848,6.1585,185.27,185.06,37.22513664]
[1734925188071,1.01257244,185.26,185.08,37.22513664]
[1734925188277,1.01257244,185.26,185.1,37.22513664]
[1734925188471,1.01257244,185.26,185.06,37.22513664]
[1734925188654,1.01257244,185.26,185.03,6.2081]
[1734925188853,0.12549,185.25,185.03,6.2081]
[1734925189052,0.12549,185.23,185.03,6.2081]
[1734925189253,0.12549,185.21,185.01,1.7653]
[1734925189491,0.12549,185.19,185.01,1.7653]
[1734925189655,20.0,185.14,185.01,1.7653]
[1734925189975,23.776884,185.17,184.97,6.2081]
[1734925189976,20.0,185.1,184.97,6.2081]
[1734925190171,1.01336834,185.09,184.94,37.22513664]
[1734925190955,23.776884,185.08,184.93,1.7653]
[1734925191178,1.01349431,185.07,184.93,1.7653]
[1734925191376,1.0133192,185.09,184.94,37.22513664]
[1734925192377,1.0133192,185.09,184.93,1.7653]
[1734925192881,20.0,185.05,184.93,1.7653]
[1734925193059,1.01360493,185.04,184.93,1.7653]
[1734925193779,0.12549,185.03,184.93,1.7653]
[1734925194287,1.01362119,185.07,184.93,1.7653]
[1734925194591,0.12549,185.06,184.93,1.7653]
[1734925195383,0.12549,185.05,184.93,1.7653]
[1734925195675,20.0,185.0,184.9,6.6115]
[1734925195883,1.01373585,184.99,184.9,6.6115]
[1734925196086,1.01373585,184.99,184.88,37.22513664]